[Event "FIDE Open World Rapid 2024"]
[Site "New York"]
[Date "2024.12.27"]
[Round "8.1"]
[White "Carlsen, Magnus"]
[Black "Tari, Aryan"]
[Result "1-0"]
[ECO "A06"]
[WhiteElo "2831"]
[BlackElo "2629"]
[Annotator "TA"]
[PlyCount "79"]
[EventDate "2024.12.14"]
[EventType "swiss"]
[EventCountry "USA"]
[SourceTitle "playchess.com"]
[Source "ChessBase"]
[SourceQuality "1"]
[TimeControl "900+10"]

{[%evp 9,79,7,8,11,16,16,16,16,20,15,10,9,27,18,13,2,29,22,22,25,35,34,49,43,52,43,38,39,61,49,85,86,83,63,69,67,69,63,70,64,125,65,47,60,102,113,168,170,176,168,349,346,340,359,341,330,389,429,421,432,427,421,421,378,432,423,466,403,512,509,509,507]} 1. Nf3 {[%emt 0:00:17]} d5 {[%emt 0:00:07]} 2. e3 {[%emt 0:00:05]} Nf6 {[%emt 0:00:03]} 3. b3 {[%emt 0:00:02]} Bf5 {[%emt 0:00:15]} 4. Be2 {[%emt 0:00:04]} h6 {[%emt 0:00:13]} 5. Ba3 {[%emt 0:00:08]} Nbd7 {[%emt 0:00:05]} 6. c4 {[%emt 0:00:05]} e6 {[%emt 0:00:42]} 7. Bxf8 {[%emt 0:00:03]} Nxf8 {[%emt 0:00:23]} 8. O-O {[%emt 0:00:08]} N8d7 {[%emt 0:00:03]} 9. cxd5 {[%emt 0:00:05]} exd5 {[%emt 0:00:04]} 10. b4 {[%emt 0:00:08][%cal Bb3b4,Bb4b5][%mdl 32]} O-O {[%emt 0:00:21]} 11. Nc3 {[%emt 0:00:07]} c6 {[%emt 0:01:05]} 12. Qb3 {[%emt 0:00:03]} Re8 {[%emt 0:00:24]} 13. b5 {[%emt 0:00:09]} Qa5 {[%emt 0:00:43]} 14. Rfc1 {[%emt 0:02:11]} Nc5 {[%emt 0:01:32]} 15. Qd1 {[%emt 0:00:01]} Ne6 {[%emt 0:01:57]} 16. bxc6 {[%emt 0:01:02]} bxc6 {[%emt 0:00:01][%cal Od5d4]} 17. Qa4 {[%emt 0:00:01]} Qb6 {[%emt 0:01:12]} 18. d4 {[%emt 0:00:10]} a5 {[%emt 0:00:52]} 19. Qd1 {[%emt 0:00:04]} Nd7 {[%emt 0:00:57]} 20. Na4 {[%emt 0:00:32]} Qb7 {[%emt 0:00:28]} 21. Bd3 {[%emt 0:00:19]} Bxd3 {[%emt 0:00:21]} 22. Qxd3 {[%emt 0:00:02]} Qb4 {[%emt 0:00:05]} 23. Qd1 {[%emt 0:00:52]} Rec8 {[%emt 0:00:49]} 24. Rab1 {[%emt 0:00:01][%cal Ba1b1,Bb1b6,Bb6b3,Bb3c3][%mdl 32]} Qd6 {[%emt 0:00:01] [#]} ({Black should try} 24... Qe7 $14) 25. Nb6 {[%emt 0:00:08]} (25. Ne5 $1 $16 {[%cal Re5d7] Nxd7 would now be deadly.} Nxe5 26. dxe5 Qxe5 27. Nb6) 25... Nxb6 $14 {[%emt 0:00:01]} 26. Rxb6 {[%emt 0:00:02]} Qa3 {[%emt 0:00:05]} 27. h3 {[%emt 0:01:35]} ({Don't play} 27. Rbxc6 Rxc6 28. Rxc6 Qxa2 $11) 27... c5 {[%emt 0:00:45] [#]} (27... Nd8 $16) 28. Rb3 $1 $18 {[%emt 0:00:13]} Qa4 {[%emt 0:00:01]} (28... Qxa2 $2 29. Ra1 $18) 29. dxc5 {[%emt 0:00:02]} Rxc5 $2 {[%emt 0:03:26]} (29... Nxc5 $2 30. Rxc5 Qxa2 (30... Rxc5 $2 {too greedy.} 31. Rb8+ Rxb8 32. Qxa4 $18) 31. Rxc8+ (31. Rxd5 a4 $18) (31. Qxd5 Rd8 $18) 31... Rxc8 32. Rb7 $18 (32. Qxd5 a4 $18)) (29... Rab8 30. c6 (30. Qxd5 Rxb3 31. axb3 Qa3 $16) (30. Rxb8 Qxd1+ 31. Rxd1 Rxb8 $16) 30... Qxa2) 30. Rxc5 {[%emt 0:00:15]} Nxc5 {[%emt 0:00:02]} 31. Qxd5 {[%emt 0:00:02]} Rc8 {[%emt 0:00:11]} 32. Rc3 {[%emt 0:00:12][%cal Of3e5]} Qb4 {[%emt 0:00:01]} 33. Rc1 {[%emt 0:00:24]} Qa3 {[%emt 0:00:16]} 34. Rc4 {[%emt 0:01:59]} Qxa2 {[%emt 0:01:26]} 35. Rxc5 {[%emt 0:00:02]} Qb1+ {[%emt 0:00:04]} 36. Kh2 {[%emt 0:00:05]} Rxc5 {[%emt 0:00:04]} 37. Qxc5 {[%emt 0:00:01]} a4 {[%emt 0:00:03]} 38. Nd4 {[%emt 0:00:18]} Qb2 {[%emt 0:00:18]} 39. Qc8+ {[%emt 0:00:03]} Kh7 {[%emt 0:00:02]} 40. Qc2+ {[%emt 0:00:02]} 1-0

[Event "FIDE Open World Rapid 2024"]
[Site "New York"]
[Date "2024.12.28"]
[Round "8.1"]
[White "Petrosian, Tigran L."]
[Black "Karthik Venkataraman"]
[Result "0-1"]
[ECO "A34"]
[WhiteElo "2551"]
[BlackElo "2603"]
[Annotator "ChessBase"]
[PlyCount "154"]
[EventDate "2024.12.14"]
[EventType "swiss"]
[EventCountry "USA"]
[SourceTitle "playchess.com"]
[Source "ChessBase"]
[SourceQuality "1"]
[TimeControl "900+10"]

1. Nf3 {[%emt 0:00:02]} c5 {[%emt 0:00:02]} 2. c4 {[%emt 0:00:09]} Nc6 {[%emt 0:00:08]} 3. Nc3 {[%emt 0:00:01]} Nf6 {[%emt 0:00:03]} 4. g3 {[%emt 0:00:01]} e6 {[%emt 0:00:06]} 5. Bg2 {[%emt 0:00:04]} Qb6 {[%emt 0:00:01]} 6. O-O {[%emt 0:00:09]} Be7 {[%emt 0:00:02]} 7. b3 {[%emt 0:00:11]} O-O {[%emt 0:00:03]} 8. Bb2 {[%emt 0:00:05]} d5 {[%emt 0:00:03]} 9. Na4 {[%emt 0:00:45]} Qa5 {[%emt 0:00:20]} 10. Rc1 {[%emt 0:00:29]} d4 {[%emt 0:00:16]} 11. d3 {[%emt 0:01:06]} e5 {[%emt 0:00:41]} 12. a3 {[%emt 0:01:39]} h6 {[%emt 0:00:50]} 13. Nd2 {[%emt 0:00:13]} Bf5 {[%emt 0:00:27]} 14. b4 {[%emt 0:02:42]} cxb4 {[%emt 0:00:04]} 15. c5 {[%emt 0:00:20]} bxa3 {[%emt 0:00:07]} 16. Bxa3 {[%emt 0:00:16]} Be6 {[%emt 0:00:45]} 17. Ra1 {[%emt 0:04:05]} Qc7 {[%emt 0:00:33]} 18. Qc2 {[%emt 0:00:10]} Nd5 {[%emt 0:00:49]} 19. Nc4 {[%emt 0:01:01]} Rab8 {[%emt 0:00:21]} 20. Rfb1 {[%emt 0:01:25]} Qd7 {[%emt 0:00:07]} 21. Rc1 {[%emt 0:02:49]} Rfc8 {[%emt 0:03:40]} 22. Qd1 {[%emt 0:00:06]} Bf8 {[%emt 0:01:35]} 23. Bh1 {[%emt 0:00:15]} Be7 {[%emt 0:00:56]} 24. Bg2 {[%emt 0:00:02]} Rd8 {[%emt 0:00:01]} 25. Qc2 {[%emt 0:00:14]} h5 {[%emt 0:00:02]} 26. h4 {[%emt 0:00:23]} g6 {[%emt 0:00:02]} 27. Rab1 {[%emt 0:00:15]} Rdc8 {[%emt 0:00:13]} 28. Qd1 {[%emt 0:00:12]} Kg7 {[%emt 0:00:11]} 29. Qd2 {[%emt 0:00:15]} f6 {[%emt 0:00:04]} 30. Qd1 {[%emt 0:00:03]} Bf8 {[%emt 0:01:52]} 31. Qd2 {[%emt 0:00:03]} Kh7 {[%emt 0:00:01]} 32. Qc2 {[%emt 0:00:17]} Nd8 {[%emt 0:01:54]} 33. Qb3 {[%emt 0:00:18]} Be7 {[%emt 0:00:15]} 34. Qd1 {[%emt 0:00:07]} Nc6 {[%emt 0:00:39]} 35. Qc2 {[%emt 0:00:04]} Qd8 {[%emt 0:00:22]} 36. Rb5 {[%emt 0:00:20]} Nc7 {[%emt 0:00:11]} 37. Rb3 {[%emt 0:00:12]} Na6 {[%emt 0:00:11]} 38. Rcb1 {[%emt 0:00:10]} Qd7 {[%emt 0:00:01]} 39. Rb5 {[%emt 0:00:11]} Nd8 {[%emt 0:00:06]} 40. Qc1 {[%emt 0:00:25]} Qe8 {[%emt 0:00:40]} 41. Qc2 {[%emt 0:00:11]} Bd7 {[%emt 0:00:03]} 42. Ra5 {[%emt 0:00:07]} Nc6 {[%emt 0:01:11]} 43. Rab5 {[%emt 0:00:01]} Ncb4 {[%emt 0:00:01]} 44. R5xb4 {[%emt 0:00:06]} Nxb4 {[%emt 0:00:01]} 45. Rxb4 {[%emt 0:00:05]} b5 {[%emt 0:00:00]} 46. Rb1 {[%emt 0:00:33]} bxc4 {[%emt 0:00:07]} 47. Rxb8 {[%emt 0:00:01]} Rxb8 {[%emt 0:00:00]} 48. c6 {[%emt 0:00:02]} Bxa3 {[%emt 0:01:20]} 49. cxd7 {[%emt 0:00:01]} Qxd7 {[%emt 0:00:01]} 50. dxc4 {[%emt 0:00:01]} Be7 {[%emt 0:00:10]} 51. Bd5 {[%emt 0:00:20]} Kg7 {[%emt 0:00:20]} 52. Nb2 {[%emt 0:00:06]} f5 {[%emt 0:00:06]} 53. Nd3 {[%emt 0:00:02]} Qc7 {[%emt 0:00:01]} 54. Qa4 {[%emt 0:00:08]} Rd8 {[%emt 0:00:26]} 55. Kg2 {[%emt 0:00:20]} Bd6 {[%emt 0:00:01]} 56. Qa1 {[%emt 0:00:02]} Qb6 {[%emt 0:00:04]} 57. Ne1 {[%emt 0:00:05]} e4 {[%emt 0:00:04]} 58. Nc2 {[%emt 0:00:05]} Be5 {[%emt 0:00:40]} 59. e3 {[%emt 0:00:01]} Bf6 {[%emt 0:00:13]} 60. exd4 {[%emt 0:00:39]} a5 {[%emt 0:00:03]} 61. Qa3 {[%emt 0:00:15]} Rd7 {[%emt 0:00:31]} 62. Qa4 {[%emt 0:00:04]} Re7 {[%emt 0:00:14]} 63. c5 {[%emt 0:00:07]} Qb2 {[%emt 0:00:01]} 64. Qc4 {[%emt 0:00:28]} Qb8 {[%emt 0:00:50]} 65. c6 {[%emt 0:00:06]} f4 {[%emt 0:00:01]} 66. gxf4 {[%emt 0:00:18]} Qxf4 {[%emt 0:00:01]} 67. Ne3 {[%emt 0:00:10]} Bxh4 {[%emt 0:00:02]} 68. Qe2 {[%emt 0:00:03]} a4 {[%emt 0:00:05]} 69. Ba2 {[%emt 0:00:14]} Rc7 {[%emt 0:00:12]} 70. d5 {[%emt 0:00:02]} Bf6 {[%emt 0:00:05]} 71. Qd1 {[%emt 0:00:23]} Be5 {[%emt 0:00:07]} 72. Qxa4 {[%emt 0:00:10]} Qh2+ {[%emt 0:00:08]} 73. Kf1 {[%emt 0:00:01]} Qh1+ {[%emt 0:00:01]} 74. Ke2 {[%emt 0:00:01]} Qf3+ {[%emt 0:00:01]} 75. Kf1 {[%emt 0:00:28]} Rf7 {[%emt 0:01:00]} 76. Nd1 {[%emt 0:00:07]} e3 {[%emt 0:00:08]} 77. Qc2 {[%emt 0:00:17]} e2+ {[%emt 0:00:02]} 0-1

[Event "FIDE Open World Rapid 2024"]
[Site "New York"]
[Date "2024.12.27"]
[Round "8.2"]
[White "Duda, Jan-Krzysztof"]
[Black "Naroditsky, Daniel"]
[Result "1-0"]
[ECO "E94"]
[WhiteElo "2740"]
[BlackElo "2619"]
[Annotator "TA"]
[PlyCount "79"]
[EventDate "2024.12.14"]
[EventType "swiss"]
[EventCountry "USA"]
[SourceTitle "playchess.com"]
[Source "ChessBase"]
[SourceQuality "1"]
[TimeControl "900+10"]

{[%evp 15,79,14,35,25,33,41,31,28,27,27,33,31,43,17,33,0,4,12,25,12,34,16,15,0,0,0,0,0,0,0,16,10,12,20,68,76,56,17,18,18,18,25,33,32,27,27,70,65,75,75,150,113,120,115,118,116,856,844,962,939,1332,1197,29985,1094,1081,1043]} 1. d4 {[%emt 0:00:02]} Nf6 {[%emt 0:00:03]} 2. c4 {[%emt 0:00:02]} g6 {[%emt 0:00:01]} 3. Nc3 {[%emt 0:00:03]} Bg7 {[%emt 0:00:02]} 4. e4 {[%emt 0:00:02]} d6 {[%emt 0:00:04]} 5. Nf3 {[%emt 0:00:02]} O-O {[%emt 0:00:04]} 6. Be2 {[%emt 0:00:01]} Na6 {[%emt 0:00:02]} 7. O-O {[%emt 0:00:04]} e5 {[%emt 0:00:01]} 8. Re1 {[%emt 0:00:17]} Bg4 {[%emt 0:00:04]} 9. Be3 {[%emt 0:00:18]} exd4 {[%emt 0:00:01]} 10. Nxd4 {[%emt 0:00:03]} (10. Qxd4 Bxf3 11. Bxf3 Ng4 $15) 10... Bxe2 {[%emt 0:00:03]} 11. Qxe2 {[%emt 0:00:05] White is slightly better.} Re8 {[%emt 0:00:06]} 12. f3 {[%emt 0:00:11]} c6 {[%emt 0:00:03]} 13. Rad1 {[%emt 0:00:18]} Nd7 {[%emt 0:00:02]} 14. Kh1 {[%emt 0:00:48]} Nac5 {[%emt 0:01:00]} 15. Nb3 {[%emt 0:01:27] Black must now prevent Bxc5.} Nxb3 {[%emt 0:01:50]} 16. axb3 {[%emt 0:00:06]} Qc7 {[%emt 0:01:06]} 17. Qd2 {[%emt 0:01:02]} Re6 {[%emt 0:00:29]} 18. Ne2 {[%emt 0:00:46][%cal Bc3e2,Be2d4,Bd4c2][%mdl 32]} a5 {[%emt 0:01:46]} 19. Bd4 {[%emt 0:01:48]} Bxd4 {[%emt 0:01:34]} 20. Nxd4 {[%emt 0:00:00]} Ree8 {[%emt 0:01:44]} 21. Qg5 {[%emt 0:01:04]} Kh8 {[%emt 0:00:00]} 22. Nc2 {[%emt 0:02:02]} Re6 {[%emt 0:00:13]} 23. Ra1 {[%emt 0:01:34]} Qb6 {[%emt 0:01:17]} 24. Qd2 {[%emt 0:01:06] White wants to play b4.} Qd8 {[%emt 0:02:40]} (24... Ra6 $11 {might be stronger.}) 25. Ra3 {[%emt 0:00:50] White is more active.} Qf6 {[%emt 0:02:59]} 26. Rxa5 {[%emt 0:02:14]} Rxa5 {[%emt 0:00:00]} 27. Qxa5 {[%emt 0:00:02]} Qxb2 {[%emt 0:00:00]} 28. Qd8+ {[%emt 0:00:18]} Kg7 {[%emt 0:00:00]} 29. Qxd7 {[%emt 0:00:05]} Qxc2 {[%emt 0:00:00]} 30. Qxb7 $14 {[%emt 0:00:03][%mdl 4096] Endgame. KQR-KQR} Re5 {[%emt 0:00:00][%cal Od6d5]} 31. Rg1 {[%emt 0:00:54]} (31. Qxc6 Rg5 32. Rg1 (32. Qxd6 $2 Qxg2#) 32... Rxg2 33. Rxg2 Qd1+ 34. Rg1 Qxf3+ 35. Rg2 Qf1+ 36. Rg1 Qf3+ 37. Rg2 Qf1+ 38. Rg1 Qf3+ $11) 31... Rg5 {[%emt 0:00:26][%cal Og5g2]} 32. h3 {[%emt 0:01:00]} ({Of course not} 32. Qxc6 Rxg2 33. Qxd6 (33. Rxg2 Qd1+ 34. Rg1 Qxf3+ 35. Rg2 Qd1+ 36. Rg1 Qf3+ 37. Rg2 Qd1+ 38. Rg1 Qf3+ $11) 33... Rf2 $11 (33... Rxg1+ 34. Kxg1 Qxb3 35. Qd4+ Kg8 36. Kf2 $14)) 32... c5 {[%emt 0:00:22]} (32... Rc5 $142) 33. Qe7 {[%emt 0:00:26]} Qd2 {[%emt 0:00:02]} 34. Qa7 {[%emt 0:00:23]} Qb2 {[%emt 0:00:31]} 35. Qa6 {[%emt 0:00:20]} Qxb3 $2 {[%emt 0:02:03][%mdl 8192] A mistake that costs the game.} (35... Qd4 $16 36. Qa1 Qf6 37. Qxf6+ Kxf6) 36. Qa1+ $18 {[%emt 0:00:03]} ({Less strong is} 36. Qxd6 Qxc4 37. Qd2 Re5 $11) 36... f6 {[%emt 0:00:02]} 37. Qa7+ {[%emt 0:00:15]} Kg8 {[%emt 0:00:11]} 38. Ra1 {[%emt 0:00:52] [#] White wants to mate with Qa8+.} Re5 {[%emt 0:00:20]} 39. Qd7 {[%emt 0:00:13]} (39. Qc7 $142 Re7 40. Qxe7 Qb8 41. Ra7 (41. Qxf6 Qf8 $18) 41... Qxa7 42. Qxa7 Kf8 43. Qxh7 g5 44. Qd7) 39... Qb8 {[%emt 0:00:07]} 40. Ra7 {[%emt 0:00:02] Weighted Error Value: White=0.10 (very precise) /Black=0.39.  Loses game:     	---       	Black=1      Mistake:       	---       	Black=2      Inaccurate:     	White=3     	Black=1      OK:         	White=9     	Black=11     Best:        	White=1     	Black=2} 1-0

[Event "FIDE Open World Rapid 2024"]
[Site "New York"]
[Date "2024.12.28"]
[Round "8.2"]
[White "Bok, Benjamin"]
[Black "Manafov, Vugar"]
[Result "0-1"]
[ECO "E32"]
[WhiteElo "2593"]
[BlackElo "2431"]
[Annotator "ChessBase"]
[PlyCount "128"]
[EventDate "2024.12.14"]
[EventType "swiss"]
[EventCountry "USA"]
[SourceTitle "playchess.com"]
[Source "ChessBase"]
[SourceQuality "1"]
[TimeControl "900+10"]

1. d4 {[%emt 0:01:56]} Nf6 {[%emt 0:00:02]} 2. c4 {[%emt 0:00:02]} e6 {[%emt 0:00:01]} 3. Nc3 {[%emt 0:00:01]} Bb4 {[%emt 0:00:01]} 4. Qc2 {[%emt 0:00:01]} O-O {[%emt 0:00:15]} 5. a3 {[%emt 0:00:01]} Bxc3+ {[%emt 0:00:02]} 6. Qxc3 {[%emt 0:00:02]} b6 {[%emt 0:00:12]} 7. Bg5 {[%emt 0:00:02]} Bb7 {[%emt 0:00:03]} 8. e3 {[%emt 0:00:02]} d6 {[%emt 0:00:02]} 9. f3 {[%emt 0:00:03]} Nbd7 {[%emt 0:00:29]} 10. Bd3 {[%emt 0:00:02]} Qe7 {[%emt 0:00:04]} 11. Ne2 {[%emt 0:00:17]} c5 {[%emt 0:00:17]} 12. b4 {[%emt 0:00:37]} cxd4 {[%emt 0:00:12]} 13. exd4 {[%emt 0:00:02]} Rfc8 {[%emt 0:00:50]} 14. O-O {[%emt 0:00:42]} Rc7 {[%emt 0:00:07]} 15. Rac1 {[%emt 0:00:46]} Rac8 {[%emt 0:00:05]} 16. Qd2 {[%emt 0:04:33]} Ba6 {[%emt 0:00:25]} 17. b5 {[%emt 0:00:28]} Bb7 {[%emt 0:00:01]} 18. Rfe1 {[%emt 0:01:34]} h6 {[%emt 0:00:15]} 19. Bh4 {[%emt 0:00:23]} Qf8 {[%emt 0:02:05]} 20. a4 {[%emt 0:01:00]} a5 {[%emt 0:00:18]} 21. Qa2 {[%emt 0:02:06]} Re8 {[%emt 0:00:18]} 22. Qa3 {[%emt 0:02:42]} d5 {[%emt 0:02:27]} 23. Qxf8+ {[%emt 0:00:25]} Rxf8 {[%emt 0:00:02]} 24. Bxf6 {[%emt 0:00:54]} gxf6 {[%emt 0:00:23]} 25. cxd5 {[%emt 0:00:03]} Rxc1 {[%emt 0:00:02]} 26. Rxc1 {[%emt 0:00:01]} Bxd5 {[%emt 0:00:03]} 27. Rc7 {[%emt 0:00:33]} Rd8 {[%emt 0:00:07]} 28. Nc3 {[%emt 0:00:18]} Bb3 {[%emt 0:00:14]} 29. Kf2 {[%emt 0:00:10]} f5 {[%emt 0:00:10]} 30. Ke3 {[%emt 0:00:11]} Nf6 {[%emt 0:00:13]} 31. Rc6 {[%emt 0:00:11]} Rb8 {[%emt 0:01:24]} 32. Bxf5 {[%emt 0:00:10]} Bd5 {[%emt 0:00:05]} 33. Rd6 {[%emt 0:00:10]} Ne8 {[%emt 0:00:06]} 34. Rd7 {[%emt 0:00:09]} Nf6 {[%emt 0:00:01]} 35. Rd6 {[%emt 0:00:03]} Ne8 {[%emt 0:00:11]} 36. Rd7 {[%emt 0:00:15]} Nf6 {[%emt 0:00:02]} 37. Rd6 {[%emt 0:00:05]} Ne8 {[%emt 0:00:03]} 38. Rxd5 {[%emt 0:00:08]} exd5 {[%emt 0:00:00]} 39. Nxd5 {[%emt 0:00:01]} Kg7 {[%emt 0:00:36]} 40. Kd3 {[%emt 0:00:24]} Nd6 {[%emt 0:01:14]} 41. Bd7 {[%emt 0:00:07]} f5 {[%emt 0:01:26]} 42. g3 {[%emt 0:00:04]} Kf7 {[%emt 0:00:01]} 43. Ke3 {[%emt 0:00:24]} Nc4+ {[%emt 0:00:03]} 44. Kf4 {[%emt 0:00:03]} Nb2 {[%emt 0:00:18]} 45. Nc3 {[%emt 0:00:17]} Rd8 {[%emt 0:00:01]} 46. Bxf5 {[%emt 0:00:06]} Nxa4 {[%emt 0:00:23]} 47. Nxa4 {[%emt 0:00:11]} Rxd4+ {[%emt 0:00:01]} 48. Ke5 {[%emt 0:00:04]} Rxa4 {[%emt 0:00:01]} 49. Kd5 {[%emt 0:00:15]} Ra3 {[%emt 0:00:48]} 50. Kc6 {[%emt 0:00:14]} Rxf3 {[%emt 0:00:01]} 51. g4 {[%emt 0:00:08]} Rxf5 {[%emt 0:00:04]} 52. gxf5 {[%emt 0:00:01]} a4 {[%emt 0:00:01]} 53. Kxb6 {[%emt 0:00:06]} a3 {[%emt 0:00:01]} 54. Kc7 {[%emt 0:00:23]} a2 {[%emt 0:00:02]} 55. b6 {[%emt 0:00:01]} a1=Q {[%emt 0:00:02]} 56. b7 {[%emt 0:00:01]} Qe5+ {[%emt 0:00:03]} 57. Kc8 {[%emt 0:00:23]} Qxf5+ {[%emt 0:00:01]} 58. Kc7 {[%emt 0:00:01]} Qc5+ {[%emt 0:00:01]} 59. Kd7 {[%emt 0:00:03]} Qb6 {[%emt 0:00:01]} 60. Kc8 {[%emt 0:00:02]} Qc6+ {[%emt 0:00:02]} 61. Kb8 {[%emt 0:00:03]} Ke7 {[%emt 0:00:01]} 62. h4 {[%emt 0:00:43]} Kd7 {[%emt 0:00:02]} 63. h5 {[%emt 0:00:03]} Qb6 {[%emt 0:00:04]} 64. Ka8 {[%emt 0:00:10]} Kc7 {[%emt 0:00:01]} 0-1

[Event "FIDE Open World Rapid 2024"]
[Site "New York"]
[Date "2024.12.27"]
[Round "8.3"]
[White "Sindarov, Javokhir"]
[Black "Dominguez Perez, Leinier"]
[Result "1/2-1/2"]
[ECO "C50"]
[WhiteElo "2682"]
[BlackElo "2741"]
[Annotator "TA"]
[PlyCount "35"]
[EventDate "2024.12.14"]
[EventType "swiss"]
[EventCountry "USA"]
[SourceTitle "playchess.com"]
[Source "ChessBase"]
[SourceQuality "1"]
[TimeControl "900+10"]

{[%evp 10,35,13,12,21,8,18,2,10,17,17,10,20,12,20,14,40,4,9,7,18,6,10,12,20,5,14,0]} 1. e4 {[%emt 0:00:01]} e5 {[%emt 0:00:02]} 2. Nf3 {[%emt 0:00:01]} Nc6 {[%emt 0:00:02]} 3. Bc4 {[%emt 0:00:02]} Bc5 {[%emt 0:00:03]} 4. Nc3 {[%emt 0:00:02]} Nf6 {[%emt 0:00:03]} 5. d3 {[%emt 0:00:01]} h6 {[%emt 0:00:11]} 6. O-O {[%emt 0:00:03]} a6 {[%emt 0:00:21]} 7. Be3 {[%emt 0:00:12]} d6 {[%emt 0:00:10]} 8. a4 {[%emt 0:01:05]} O-O {[%emt 0:02:06]} 9. Bxc5 {[%emt 0:00:01]} dxc5 {[%emt 0:00:02]} 10. Nd5 {[%emt 0:00:01]} Re8 {[%emt 0:00:55]} 11. Ne3 {[%emt 0:00:17]} Rb8 {[%emt 0:00:52]} 12. a5 {[%emt 0:01:39]} Ra8 {[%emt 0:00:11]} 13. Kh1 {[%emt 0:03:36]} b5 {[%emt 0:01:33] The position is equal.} 14. axb6 {[%emt 0:00:06]} cxb6 {[%emt 0:00:02]} 15. Bb5 {[%emt 0:00:32]} Bb7 {[%emt 0:00:25]} 16. Bxc6 {[%emt 0:00:08]} Bxc6 {[%emt 0:00:02]} 17. Qe1 {[%emt 0:00:07]} a5 {[%emt 0:00:49]} 18. Qc3 {[%emt 0:01:50] An uneventful encounter.   Weighted Error Value: White=0.09 (flawless) /Black=0.08 (flawless) .  Inaccurate:     	White=1     	Black=1      OK:         	White=5     	Black=2} 1/2-1/2

[Event "FIDE Open World Rapid 2024"]
[Site "New York"]
[Date "2024.12.28"]
[Round "8.3"]
[White "Ibarra Jerez, Jose Carlos"]
[Black "Mamedov, Edgar"]
[Result "1-0"]
[ECO "B30"]
[WhiteElo "2556"]
[BlackElo "2441"]
[Annotator "ChessBase"]
[PlyCount "89"]
[EventDate "2024.12.14"]
[EventType "swiss"]
[EventCountry "USA"]
[SourceTitle "playchess.com"]
[Source "ChessBase"]
[SourceQuality "1"]
[TimeControl "900+10"]

1. e4 {[%emt 0:00:03]} c5 {[%emt 0:00:03]} 2. Nf3 {[%emt 0:00:03]} Nc6 {[%emt 0:00:01]} 3. Nc3 {[%emt 0:00:06]} e5 {[%emt 0:00:04]} 4. Bc4 {[%emt 0:00:06]} Be7 {[%emt 0:00:07]} 5. d3 {[%emt 0:00:18]} d6 {[%emt 0:00:11]} 6. O-O {[%emt 0:00:17]} Nf6 {[%emt 0:00:11]} 7. Ng5 {[%emt 0:00:04]} O-O {[%emt 0:00:11]} 8. f4 {[%emt 0:00:03]} Bg4 {[%emt 0:00:22]} 9. Qe1 {[%emt 0:00:49]} exf4 {[%emt 0:00:52]} 10. Bxf4 {[%emt 0:00:10]} Nd4 {[%emt 0:00:18]} 11. Qd2 {[%emt 0:00:09]} h6 {[%emt 0:01:07]} 12. Nf3 {[%emt 0:00:03]} Nxf3+ {[%emt 0:01:03]} 13. gxf3 {[%emt 0:00:02]} Be6 {[%emt 0:01:26]} 14. Rae1 {[%emt 0:01:25]} Kh7 {[%emt 0:00:55]} 15. Kh1 {[%emt 0:00:27]} Nh5 {[%emt 0:01:02]} 16. Be3 {[%emt 0:00:22]} Bh3 {[%emt 0:00:38]} 17. Rg1 {[%emt 0:00:14]} f5 {[%emt 0:00:10]} 18. exf5 {[%emt 0:02:22]} Bxf5 {[%emt 0:01:39]} 19. d4 {[%emt 0:03:05]} cxd4 {[%emt 0:01:39]} 20. Qxd4 {[%emt 0:00:13]} Bf6 {[%emt 0:00:41]} 21. Qd2 {[%emt 0:00:39]} Be5 {[%emt 0:00:42]} 22. Bd4 {[%emt 0:01:26]} Qh4 {[%emt 0:01:53]} 23. Bxe5 {[%emt 0:00:11]} Qxc4 {[%emt 0:00:22]} 24. Qxd6 {[%emt 0:02:54]} Rae8 {[%emt 0:00:30]} 25. Ne4 {[%emt 0:01:27]} Qf7 {[%emt 0:00:45]} 26. Qd4 {[%emt 0:00:46]} Bd7 {[%emt 0:01:00]} 27. Re3 {[%emt 0:00:36]} Bc6 {[%emt 0:00:02]} 28. Bd6 {[%emt 0:00:10]} Rd8 {[%emt 0:00:45]} 29. c4 {[%emt 0:00:18]} Rfe8 {[%emt 0:00:30]} 30. Rge1 {[%emt 0:00:10]} Qf5 {[%emt 0:00:28]} 31. c5 {[%emt 0:00:23]} Kh8 {[%emt 0:00:09]} 32. Kg1 {[%emt 0:00:20]} Re6 {[%emt 0:00:14]} 33. Ng3 {[%emt 0:00:18]} Nxg3 {[%emt 0:00:07]} 34. hxg3 {[%emt 0:00:16]} Rg6 {[%emt 0:00:17]} 35. Kf2 {[%emt 0:00:17]} Qh3 {[%emt 0:00:13]} 36. Rg1 {[%emt 0:00:02]} Qf5 {[%emt 0:00:12]} 37. Qd3 {[%emt 0:00:16]} Qf7 {[%emt 0:00:13]} 38. b3 {[%emt 0:00:07]} Rf6 {[%emt 0:00:05]} 39. Kg2 {[%emt 0:00:12]} b6 {[%emt 0:00:05]} 40. b4 {[%emt 0:00:27]} Qxa2+ {[%emt 0:00:05]} 41. Kh3 {[%emt 0:00:03]} Qf7 {[%emt 0:00:05]} 42. Kg2 {[%emt 0:00:04]} Qa2+ {[%emt 0:00:14]} 43. Kh3 {[%emt 0:00:01]} Qf2 {[%emt 0:00:07]} 44. Rg2 {[%emt 0:00:09]} Bd7+ {[%emt 0:00:29]} 45. Kh2 {[%emt 0:00:16]} 1-0